bitfinex-derivatives/quotes_BNBF0:USTF0_20250509
["timestamp","ask_amount","ask_price","bid_price","bid_amount"]
[1746829647923,0.25883665,642.12,640.47,0.31227067]
[1746829648222,0.25883665,642.13,640.47,0.31227067]
[1746829648724,0.27133234,642.12,640.47,0.31227067]
[1746829649220,0.25883665,642.11,640.47,0.31227067]
[1746829653429,0.27126888,642.1,640.47,0.31227067]
[1746829654029,0.25883665,642.09,640.47,0.31227067]
[1746829654728,0.634,642.08,640.47,0.31227067]
[1746829655028,0.25883665,642.07,640.47,0.31227067]
[1746829656631,0.27133762,642.06,640.47,0.31227067]
[1746829656929,0.25883665,642.05,640.47,0.31227067]
[1746829657831,0.27133762,642.06,640.47,0.31227067]
[1746829659133,0.634,642.08,640.47,0.31227067]
[1746829659633,0.27131647,642.05,640.47,0.31227067]
[1746829662129,0.634,642.08,640.47,0.31227067]
[1746829662437,0.2712932,642.05,640.47,0.31227067]
[1746829663438,0.634,642.08,640.47,0.31227067]
[1746829665640,0.634,642.08,640.48,0.544]
[1746829665939,0.634,642.08,640.5,0.31225604]
[1746829672643,0.634,642.08,640.51,0.28645242]
[1746829674546,0.634,642.08,640.53,0.31224142]
[1746829674945,0.634,642.08,640.54,0.2864501]
[1746829675142,0.634,642.08,640.56,0.3122268]
[1746829675440,0.634,642.08,640.57,0.2864501]
[1746829675644,0.634,642.08,640.59,0.31221217]
[1746829676144,0.634,642.08,640.6,0.2864501]
[1746829676344,0.634,642.08,640.62,0.31219755]
[1746829677142,0.634,642.08,640.63,0.2864501]
[1746829677445,0.634,642.08,640.65,0.31218293]
[1746829677946,0.634,642.08,640.66,0.2864501]
[1746829678145,0.634,642.08,640.68,0.31216832]
[1746829681245,0.634,642.08,640.69,0.28644927]
[1746829681547,0.634,642.08,640.71,0.3121537]
[1746829682648,0.634,642.08,640.72,0.2864472]
[1746829682844,0.634,642.08,640.74,0.31213908]
[1746829683449,0.634,642.08,640.75,0.2864472]
[1746829683646,0.634,642.08,640.77,0.31212447]
[1746829685252,0.25861758,642.07,640.78,0.28644762]
[1746829685745,0.25861758,642.07,640.8,0.31210986]
[1746829686151,0.25861758,642.24,640.81,0.28644762]
[1746829686654,0.25861758,642.24,640.83,0.31209525]
[1746829687053,0.25861758,642.24,640.84,0.28644762]
[1746829687255,0.25861758,642.24,640.86,0.31208064]
[1746829687554,0.25861758,642.24,640.87,0.28644762]
[1746829688056,0.25861758,642.24,640.89,0.31206603]
[1746829688757,0.479,642.23,640.89,0.31206603]
[1746829689058,0.479,642.23,640.9,0.28644762]
[1746829689359,0.25861758,642.22,640.92,0.31205142]
[1746829689563,0.479,642.23,640.92,0.31205142]
[1746829690158,0.25863843,642.22,640.92,0.31205142]
[1746829690460,0.479,642.23,640.92,0.31205142]
[1746829699064,0.25863511,642.22,640.92,0.31205142]
[1746829700167,0.25863511,642.26,640.92,0.31205142]
[1746829701967,0.2710956,642.27,640.92,0.31205142]
[1746829702169,0.82963511,642.25,640.93,0.2864658]
[1746829702366,0.25863511,642.24,640.95,0.31203682]
[1746829708877,0.25863511,642.24,640.96,0.515]
[1746829709077,0.25863511,642.24,640.98,0.31202221]
[1746829715385,0.25863511,642.32,640.98,0.31202221]
[1746829716586,0.27109032,642.33,640.98,0.31202221]
[1746829716780,0.25863511,642.32,640.98,0.31202221]
[1746829717587,0.64863511,642.32,640.98,0.31202221]
[1746829717781,0.25863511,642.31,640.98,0.31202221]
[1746829727594,0.25863511,642.31,640.99,0.43]
[1746829727794,0.25863511,642.31,641.01,0.31200761]
[1746829731600,0.39,642.32,641.01,0.31200761]
[1746829731903,0.25859479,642.31,641.01,0.31200761]
[1746829739505,0.39,642.32,641.01,0.31200761]
[1746829739900,0.25859506,642.31,641.01,0.31200761]
[1746829747010,0.27113256,642.42,641.01,0.31200761]
[1746829747211,0.25858801,642.41,641.01,0.31200761]
[1746829749213,2.03376074,642.85,641.01,0.31200761]
[1746829749512,0.27107659,642.42,641.01,0.31200761]
[1746829749811,0.2585877,642.84,641.01,0.31200761]
[1746829750011,0.2585877,642.83,641.01,0.31200761]
[1746829750212,0.2585877,642.82,641.01,0.31200761]
[1746829750714,2.03376074,642.72,641.01,0.31200761]
[1746829751216,0.2585877,642.71,641.01,0.31200761]
[1746829751514,0.2585877,642.7,641.01,0.31200761]
[1746829751810,0.2585877,642.69,641.01,0.31200761]
[1746829752115,0.2585877,642.68,641.01,0.31200761]
[1746829752515,0.2585877,642.67,641.01,0.31200761]
[1746829752719,0.27109032,642.68,641.01,0.31200761]
[1746829753116,0.25858996,642.67,641.02,0.28641997]
[1746829753316,0.25858996,642.67,641.04,0.31199301]
[1746829753516,0.25858996,642.66,641.04,0.31199301]
[1746829753912,0.25858996,642.65,641.04,0.31199301]
[1746829754217,0.25858996,642.64,641.04,0.31199301]
[1746829754518,0.25858996,642.63,641.04,0.31199301]
[1746829754720,2.03376074,642.55,641.04,0.31199301]
[1746829755021,0.25858996,642.54,641.04,0.31199301]
[1746829755321,0.25858996,642.53,641.04,0.31199301]
[1746829755520,0.52969823,642.53,641.04,0.31199301]
[1746829755917,0.25858996,642.52,641.04,0.31199301]
[1746829756222,0.25858996,642.51,641.04,0.31199301]
[1746829756721,0.25858996,642.5,641.04,0.31199301]
[1746829757221,2.03376074,642.51,641.04,0.31199301]
[1746829757521,0.25859236,642.5,641.04,0.31199301]
[1746829757922,0.25859236,642.49,641.04,0.31199301]
[1746829758623,0.52970274,642.48,641.04,0.31199301]
[1746829759224,0.25859236,642.47,641.04,0.31199301]
[1746829761626,0.27109454,642.46,641.04,0.31199301]
[1746829761925,0.25859236,642.45,641.04,0.31199301]
[1746829764528,0.27109982,642.44,641.04,0.31199301]
[1746829765122,0.25859236,642.43,641.04,0.31199301]
[1746829765824,0.25859236,642.43,641.04,0.87999301]
[1746829769832,0.25859236,642.78,641.04,0.87999301]
[1746829770032,0.27105126,642.55,641.04,0.87999301]
[1746829770431,0.25859236,642.78,641.04,0.87999301]
[1746829770632,0.25859236,642.54,641.04,0.87999301]
[1746829770932,0.25859236,642.78,641.04,0.87999301]
[1746829771332,0.447,642.77,641.04,0.87999301]
[1746829771532,0.25859236,642.76,641.04,0.87999301]
[1746829773435,0.25859236,642.76,641.05,0.28622921]
[1746829774233,0.25859236,642.76,641.07,0.31197841]
[1746829774833,0.25859236,642.76,641.08,0.28622921]
[1746829775033,0.25859236,642.76,641.1,0.31196381]
[1746829775233,0.25859236,642.76,641.11,0.28622921]
[1746829775532,0.25859236,642.76,641.13,0.31194921]
[1746829776129,0.25859236,642.76,641.14,0.28622921]
[1746829776336,0.25859236,642.76,641.16,0.31193461]
[1746829776735,0.25859236,642.76,641.17,0.28622921]
[1746829776935,0.25859236,642.76,641.19,0.31192002]
[1746829782142,0.71800693,642.77,641.19,0.31192002]
[1746829782341,0.447,642.77,641.19,0.31192002]
[1746829782545,0.25842122,642.76,641.19,0.31192002]
[1746829782739,0.52942604,642.76,641.19,0.31192002]
[1746829783136,0.25842122,642.75,641.19,0.31192002]
[1746829785742,0.27086455,642.76,641.19,0.31192002]
[1746829787045,0.578,642.75,641.19,0.31192002]
[1746829787238,0.25841823,642.74,641.2,0.28624696]
[1746829787442,0.25841823,642.74,641.22,0.31190543]
[1746829787644,0.25841823,642.74,641.23,0.28624696]
[1746829787948,0.25841823,642.74,641.25,0.31189083]
[1746829796356,0.578,642.75,641.25,0.31189083]
[1746829796655,0.25842069,642.74,641.25,0.31189083]
[1746829798859,0.578,642.75,641.25,0.31189083]
[1746829799260,0.25842021,642.74,641.25,0.31189083]
[1746829805462,0.27098372,642.8,641.25,0.31189083]
[1746829805762,0.25841941,642.79,641.26,0.28624808]
[1746829805962,0.25841941,642.79,641.28,0.31187624]
[1746829806263,0.25841941,642.78,641.28,0.31187624]
[1746829806465,0.25841941,642.77,641.29,0.28624808]
[1746829806659,0.25841941,642.77,641.31,0.31186165]
[1746829806964,0.25841941,642.76,641.31,0.31186165]
[1746829807157,0.25841941,642.76,641.32,0.28624808]
[1746829807362,0.25841941,642.75,641.34,0.31184707]
[1746829807668,0.25841941,642.8,641.35,0.28624808]
[1746829807860,0.25841941,642.8,641.37,0.31183248]
[1746829808063,0.25841941,642.79,641.37,0.31183248]
[1746829808365,0.562,642.78,641.37,0.31183248]
[1746829808565,0.82041941,642.78,641.38,0.28624808]
[1746829808765,0.82041941,642.78,641.4,0.31181789]
[1746829809060,0.25841941,642.77,641.41,0.28624808]
[1746829809259,0.25841941,642.77,641.43,0.31180331]
[1746829809463,0.25841941,642.76,641.43,0.31180331]
[1746829809764,0.27097211,642.76,641.44,0.28624808]
[1746829809961,0.25841941,642.75,641.46,0.31178873]
[1746829811265,0.25841941,642.75,641.46,0.30701278]
[1746829812565,0.52940102,642.75,641.46,0.30701278]
[1746829812861,0.25841941,642.74,641.46,0.30701278]
[1746829813966,0.25841941,642.74,641.47,0.532]
[1746829814164,0.25841941,642.74,641.49,0.31177415]
[1746829818570,0.25841941,642.77,641.49,0.31177415]
[1746829825778,0.25841941,642.82,641.49,0.31177415]
[1746829826878,0.25841941,642.81,641.49,0.31177415]
[1746829827172,0.25841941,642.8,641.49,0.31177415]
[1746829827674,0.25841941,642.79,641.49,0.31177415]
[1746829827875,0.25841941,642.83,641.49,0.31177415]
[1746829829178,0.66741941,642.83,641.49,0.31177415]
[1746829829576,0.25841941,642.82,641.49,0.31177415]
[1746829834780,0.409,642.83,641.49,0.31177415]
[1746829835177,0.2581417,642.82,641.49,0.31177415]
[1746829846592,0.2581417,642.82,641.5,0.524]
[1746829846791,0.2581417,642.82,641.52,0.31175957]
[1746829848594,0.2581417,642.86,641.52,0.31175957]
[1746829851494,0.607,642.85,641.52,0.31175957]
[1746829851696,0.2581417,642.84,641.52,0.31175957]
[1746829856298,0.607,642.85,641.52,0.31175957]
[1746829856694,0.25814223,642.84,641.52,0.31175957]
[1746829874813,0.25814223,642.86,641.52,0.31175957]
[1746829875808,0.27084768,642.87,641.52,0.31175957]
[1746829876013,0.25814223,642.85,641.52,0.31175957]
[1746829876216,0.25814223,642.86,641.52,0.31175957]
[1746829877820,0.44,642.85,641.52,0.31175957]
[1746829878518,0.25814223,642.84,641.52,0.31175957]
[1746829881220,0.44,642.85,641.52,0.31175957]
[1746829881619,0.25815695,642.84,641.52,0.31175957]
[1746829886523,0.25815695,642.84,641.52,0.76475957]
[1746829887518,0.44,642.85,641.52,0.76475957]
[1746829887917,0.25815634,642.84,641.52,0.76475957]
[1746829894427,0.25815634,642.86,641.52,0.76475957]
[1746829896528,2.03376074,643.29,641.52,0.76475957]
[1746829896529,0.27088036,642.87,641.52,0.76475957]
[1746829896832,0.25815634,642.86,641.52,0.76475957]
[1746829897633,0.27088036,642.87,641.52,0.76475957]
[1746829897935,0.91515481,642.85,641.52,0.76475957]
[1746829898535,0.25815481,642.84,641.52,0.76475957]
[1746829903639,0.657,642.85,641.52,0.76475957]
[1746829903835,0.25815455,642.84,641.52,0.76475957]
[1746829910341,0.27092887,642.86,641.52,0.76475957]
[1746829910639,0.2581556,642.85,641.52,0.76475957]
[1746829911742,0.27089512,642.86,641.52,0.76475957]
[1746829912144,0.2581556,642.85,641.52,0.76475957]
[1746829913844,0.466,642.84,641.52,0.76475957]
[1746829914139,0.2581556,642.83,641.52,0.76475957]
[1746829922450,0.466,642.84,641.52,0.76475957]
[1746829922948,0.2581553,642.83,641.52,0.76475957]
[1746829928053,0.466,642.84,641.52,0.76475957]
[1746829928452,0.25815485,642.83,641.52,0.76475957]
[1746829932552,0.466,642.84,641.52,0.76475957]
[1746829932750,0.25815724,642.82,641.52,0.76475957]
[1746829933052,0.25815724,642.83,641.52,0.76475957]
[1746829940263,0.25815724,642.85,641.52,0.76475957]
[1746829941866,0.27092992,642.86,641.52,0.76475957]
[1746829942163,0.25814337,642.84,641.52,0.76475957]
[1746829942464,0.25814337,642.85,641.52,0.76475957]
[1746829943766,0.583,642.84,641.52,0.76475957]
[1746829944266,0.25814337,642.83,641.52,0.76475957]
[1746829970079,0.25814337,642.87,641.52,0.76475957]
[1746829971579,0.25814337,643.32,641.52,0.76475957]
[1746829971784,0.27087404,642.88,641.52,0.76475957]
[1746829971979,0.25814337,643.31,641.52,0.76475957]
[1746829972179,0.25814337,642.87,641.52,0.76475957]
[1746829972381,0.25814337,643.3,641.52,0.76475957]
[1746829972580,0.25814337,643.29,641.52,0.76475957]
[1746829972780,0.25814337,643.28,641.52,0.76475957]
[1746829972979,0.25814337,643.27,641.52,0.76475957]
[1746829973184,0.25814337,643.26,641.52,0.76475957]
[1746829973383,0.25814337,643.25,641.52,0.76475957]
[1746829973583,0.25814337,643.24,641.52,0.76475957]
[1746829973782,0.25814337,643.23,641.52,0.76475957]
[1746829974080,0.25814337,643.22,641.52,0.76475957]
[1746829974284,0.25814337,643.21,641.52,0.76475957]
[1746829974785,0.25814337,643.2,641.52,0.76475957]
[1746829974984,0.25814337,643.19,641.52,0.76475957]
[1746829975483,0.25814337,643.18,641.52,0.76475957]
[1746829976684,0.25814337,643.17,641.52,0.76475957]
[1746829976880,0.25814337,643.16,641.52,0.76475957]
[1746829977285,0.25814337,643.15,641.52,0.76475957]
[1746829977579,0.25814337,643.14,641.52,0.76475957]
[1746829977785,0.52903006,643.14,641.52,0.76475957]
[1746829978084,0.25814337,643.13,641.52,0.76475957]
[1746829978680,0.25814337,643.12,641.52,0.76475957]
[1746829979887,0.25814337,643.11,641.52,0.76475957]
[1746829980086,0.25814337,643.1,641.52,0.76475957]
[1746829980387,0.25814337,643.09,641.52,0.76475957]
[1746829980684,0.52903006,643.09,641.52,0.76475957]
[1746829980885,0.25814337,643.08,641.52,0.76475957]
[1746829981186,0.25814337,643.07,641.52,0.76475957]
[1746829981582,0.25814337,643.06,641.52,0.76475957]
[1746829981787,0.25814337,643.05,641.52,0.76475957]
[1746829982383,0.25814337,643.04,641.52,0.76475957]
[1746829982581,0.25814337,643.03,641.53,0.28619789]
[1746829982885,0.25814337,643.03,641.55,0.31174499]
[1746829983086,0.25814337,643.02,641.55,0.31174499]
[1746829983387,0.25814337,643.01,641.55,0.31174499]
[1746829983789,0.25814337,643.0,641.55,0.31174499]
[1746829983986,0.25814337,642.99,641.55,0.31174499]
[1746829984287,0.25814337,642.98,641.55,0.31174499]
[1746829984586,0.25814337,642.97,641.55,0.31174499]
[1746829984886,0.25814337,642.96,641.55,0.31174499]
[1746829985187,0.25814337,642.95,641.55,0.31174499]
[1746829985387,0.25814337,642.95,641.55,0.89774499]
[1746829985587,0.25814337,642.94,641.55,0.89774499]
[1746829985889,0.25814337,642.93,641.55,0.89774499]
[1746829986287,0.25814337,642.92,641.55,0.89774499]
[1746829986686,0.25814337,642.91,641.55,0.89774499]
[1746829986887,0.25814337,642.9,641.55,0.89774499]
[1746829987188,0.25814337,642.89,641.55,0.89774499]
[1746829987887,0.25814337,642.88,641.55,0.89774499]
[1746829988189,0.25814337,642.87,641.55,0.89774499]
[1746829988488,0.25814337,642.86,641.55,0.89774499]
[1746829988885,0.25814337,642.85,641.55,0.89774499]
[1746829989186,0.25814337,642.84,641.55,0.89774499]
[1746829989783,0.27091937,642.83,641.55,0.89774499]
[1746829989987,0.25814337,642.82,641.55,0.89774499]
[1746829990987,0.69314337,642.82,641.55,0.89774499]
[1746829991291,0.25814337,642.81,641.55,0.89774499]
[1746829992693,0.27096684,642.8,641.55,0.89774499]
[1746829992992,0.25814337,642.79,641.55,0.89774499]
[1746829998095,0.25814337,642.78,641.55,0.89774499]
[1746829998296,0.25814337,642.77,641.55,0.89774499]
[1746829998701,0.52913131,642.76,641.55,0.89774499]
[1746829999004,0.25814337,642.75,641.55,0.89774499]
[1746830001803,0.27098794,642.74,641.55,0.89774499]
[1746830002204,0.25814337,642.73,641.55,0.89774499]
[1746830004605,0.25814337,642.72,641.55,0.89774499]
[1746830004801,0.27094258,642.72,641.55,0.89774499]
[1746830004999,0.80914337,642.71,641.55,0.89774499]
[1746830005305,0.25814337,642.7,641.55,0.89774499]
[1746830007808,0.27099954,642.69,641.55,0.89774499]
[1746830008104,0.25814337,642.68,641.55,0.89774499]
[1746830013708,0.27099954,642.67,641.55,0.89774499]
[1746830014213,0.25814337,642.66,641.55,0.89774499]
[1746830014414,0.27099954,642.67,641.55,0.89774499]
[1746830014915,0.25827789,642.66,641.55,0.89774499]
[1746830016916,0.27099954,642.65,641.55,0.89774499]
[1746830017312,0.25827789,642.64,641.55,0.89774499]
[1746830019622,0.27099954,642.63,641.55,0.89774499]
[1746830020019,0.25827789,642.62,641.55,0.89774499]
[1746830022626,0.27099954,642.61,641.55,0.89774499]
[1746830022925,0.25827789,642.6,641.55,0.89774499]
[1746830024424,0.25827789,642.59,641.55,0.89774499]
[1746830024723,0.25827789,642.6,641.55,0.89774499]
[1746830025030,0.25827789,642.59,641.55,0.89774499]
[1746830025328,0.25827789,642.6,641.55,0.89774499]
[1746830025629,0.27099954,642.58,641.55,0.89774499]
[1746830026527,0.25827789,642.57,641.55,0.89774499]
[1746830028834,0.27099954,642.58,641.55,0.89774499]
[1746830029034,0.25827789,642.57,641.55,0.89774499]
[1746830032037,0.27099954,642.58,641.55,0.89774499]
[1746830032337,0.25827789,642.57,641.55,0.89774499]
[1746830037739,0.459,642.57,641.55,0.89774499]
[1746830038039,0.25827789,642.56,641.55,0.89774499]
[1746830056050,0.25827789,642.57,641.55,0.89774499]
[1746830058752,0.653,642.57,641.55,0.89774499]
[1746830059148,0.25827789,642.56,641.55,0.89774499]
[1746830072461,0.25827789,642.64,641.55,0.89774499]
[1746830073661,0.25827789,643.06,641.55,0.89774499]
[1746830073862,0.2709468,642.65,641.55,0.89774499]
[1746830074162,0.25827789,642.64,641.55,0.89774499]
[1746830074562,0.25827789,643.06,641.55,0.89774499]
[1746830074857,2.03376074,643.03,641.55,0.89774499]
[1746830075562,0.529204,643.02,641.55,0.89774499]
[1746830075865,0.25825299,643.01,641.55,0.89774499]
[1746830076163,0.27095101,643.02,641.55,0.89774499]
[1746830076164,0.25825299,643.0,641.55,0.89774499]
[1746830076561,0.25825299,642.99,641.55,0.89774499]
[1746830076759,2.03376074,642.92,641.55,0.89774499]
[1746830077265,0.25825299,642.91,641.55,0.89774499]
[1746830077567,0.25825299,642.9,641.55,0.89774499]
[1746830077966,0.25825299,642.89,641.55,0.89774499]
[1746830078369,0.25825299,642.91,641.55,0.89774499]
[1746830078767,0.25825299,642.9,641.55,0.89774499]
[1746830079068,0.25825299,642.89,641.55,0.89774499]
[1746830079369,0.25825299,642.88,641.55,0.89774499]
[1746830079664,0.27095629,642.88,641.55,0.89774499]
[1746830080071,0.25825299,642.87,641.55,0.89774499]
[1746830080969,0.25825299,642.86,641.55,0.89774499]
[1746830081269,0.25825299,642.87,641.55,0.89774499]
[1746830082070,0.25825299,642.86,641.55,0.89774499]
[1746830082569,0.25825299,642.87,641.55,0.89774499]
[1746830082865,0.27094891,642.85,641.55,0.89774499]
[1746830083169,0.25825299,642.84,641.55,0.89774499]
[1746830085666,0.27094891,642.83,641.55,0.89774499]
[1746830086272,0.25825299,642.82,641.55,0.89774499]
[1746830093881,0.25825299,643.04,641.55,0.89774499]
[1746830094180,0.25825299,643.03,641.55,0.89774499]
[1746830095382,0.25825299,643.02,641.55,0.89774499]
[1746830095682,0.25825299,643.01,641.55,0.89774499]
[1746830095983,0.25825299,643.0,641.55,0.89774499]
[1746830096577,0.25825299,642.99,641.55,0.89774499]
[1746830096880,0.25825299,642.98,641.55,0.89774499]
[1746830097278,0.25825299,642.97,641.55,0.89774499]
[1746830097583,0.25825299,642.96,641.55,0.89774499]
[1746830097979,0.25825299,642.95,641.55,0.89774499]
[1746830098282,0.25825299,642.94,641.55,0.89774499]
[1746830098682,0.25825299,642.93,641.55,0.89774499]
[1746830098982,0.25825299,642.92,641.55,0.89774499]
[1746830099483,0.25825299,642.91,641.55,0.89774499]
[1746830099883,0.25825299,642.9,641.55,0.89774499]
[1746830100179,0.25825299,642.89,641.55,0.89774499]
[1746830100586,0.25825299,642.88,641.55,0.89774499]
[1746830100884,0.25825299,642.87,641.55,0.89774499]
[1746830101383,0.25825299,642.86,641.55,0.89774499]
[1746830101582,0.25825299,642.85,641.55,0.89774499]
[1746830101884,0.25825299,642.84,641.55,0.89774499]
[1746830102186,0.25825299,642.83,641.55,0.89774499]
[1746830102685,0.25825299,642.82,641.55,0.89774499]
[1746830103080,0.25825299,642.96,641.55,0.89774499]
[1746830104887,2.03376074,642.89,641.55,0.89774499]
[1746830105483,0.89425299,642.88,641.55,0.89774499]
[1746830105887,0.25825299,642.87,641.55,0.89774499]
[1746830108390,0.636,642.88,641.55,0.89774499]
[1746830108689,0.25825419,642.87,641.55,0.89774499]
[1746830112994,0.25825419,642.86,641.55,0.89774499]
[1746830113190,0.25825419,642.85,641.55,0.89774499]
[1746830113795,0.25825419,642.84,641.55,0.89774499]
[1746830114196,0.25825419,642.83,641.55,0.89774499]
[1746830114691,0.25825419,642.82,641.55,0.89774499]
[1746830114991,0.25825419,642.81,641.55,0.89774499]
[1746830115296,0.25825419,642.8,641.55,0.89774499]
[1746830115791,0.25825419,642.79,641.55,0.89774499]
[1746830116091,0.25825419,642.78,641.55,0.89774499]
[1746830116596,0.25825419,642.77,641.55,0.89774499]
[1746830117097,0.25825419,642.76,641.55,0.89774499]
[1746830117396,0.25825419,642.75,641.55,0.89774499]
[1746830117997,0.25825419,642.85,641.55,0.89774499]
[1746830119098,0.25825419,642.87,641.55,0.89774499]
[1746830120100,0.25825419,642.86,641.55,0.89774499]
[1746830120396,0.25825419,642.87,641.55,0.89774499]
[1746830120800,0.25825419,642.86,641.55,0.89774499]
[1746830121105,0.25825419,642.87,641.55,0.89774499]
[1746830121500,0.636,642.88,641.55,0.89774499]
[1746830121702,0.25825375,642.87,641.55,0.89774499]
[1746830131110,0.636,642.88,641.55,0.89774499]
[1746830131609,0.25826024,642.87,641.55,0.89774499]
[1746830133008,0.25826024,642.86,641.55,0.89774499]
[1746830133509,0.25826024,642.87,641.55,0.89774499]
[1746830133904,0.25826024,642.86,641.55,0.89774499]
[1746830134109,0.25826024,642.87,641.55,0.89774499]
[1746830134411,0.25826024,642.86,641.55,0.89774499]
[1746830134909,0.25826024,642.87,641.55,0.89774499]
[1746830135409,0.25826024,642.86,641.55,0.89774499]
[1746830135912,0.25826024,643.03,641.55,0.89774499]
[1746830136212,0.25826024,643.02,641.55,0.89774499]
[1746830136613,0.25826024,643.01,641.55,0.89774499]
[1746830137011,0.25826024,643.0,641.55,0.89774499]
[1746830137412,0.25826024,642.99,641.55,0.89774499]
[1746830137811,0.25826024,642.98,641.55,0.89774499]
[1746830138106,0.25826024,643.03,641.55,0.89774499]
[1746830138511,0.76526024,643.02,641.55,0.89774499]
[1746830138910,0.25826024,643.01,641.55,0.89774499]
[1746830139208,0.25826024,643.0,641.55,0.89774499]
[1746830139512,0.25826024,643.01,641.55,0.89774499]
[1746830139809,0.507,643.02,641.55,0.89774499]
[1746830140113,0.25825744,643.01,641.55,0.89774499]
[1746830141714,0.25825744,643.0,641.55,0.89774499]
[1746830142216,0.25825744,642.99,641.55,0.89774499]
[1746830142615,0.25825744,642.98,641.55,0.89774499]
[1746830143011,0.25825744,642.97,641.55,0.89774499]
[1746830143316,0.25825744,643.01,641.55,0.89774499]
[1746830144214,0.25825744,643.0,641.55,0.89774499]
[1746830144418,0.25825744,642.99,641.55,0.89774499]
[1746830144814,0.25825744,642.98,641.55,0.89774499]
[1746830145114,0.25825744,643.01,641.55,0.89774499]
[1746830145615,0.25825744,643.0,641.55,0.89774499]
[1746830146019,0.25825744,642.99,641.55,0.89774499]
[1746830146622,0.25825744,642.98,641.55,0.89774499]
[1746830146917,0.25825744,642.97,641.55,0.89774499]
[1746830147323,0.25825744,642.96,641.55,0.89774499]
[1746830147623,0.25825744,643.01,641.55,0.89774499]
[1746830148018,0.25825744,643.0,641.55,0.89774499]
[1746830148321,0.25825744,643.01,641.55,0.89774499]
[1746830148625,0.25825744,643.0,641.55,0.89774499]
[1746830149022,0.25825744,643.01,641.55,0.89774499]
[1746830149426,0.25825744,643.0,641.55,0.89774499]
[1746830149819,0.25825744,642.99,641.55,0.89774499]
[1746830150320,0.507,643.02,641.55,0.89774499]
[1746830150321,0.25825744,642.98,641.55,0.89774499]
[1746830150624,0.25825744,642.97,641.55,0.89774499]
[1746830151128,0.25825744,642.96,641.55,0.89774499]
[1746830151424,0.25825744,642.95,641.55,0.89774499]
[1746830151821,0.25825744,643.01,641.55,0.89774499]
[1746830152226,0.25825744,643.0,641.55,0.89774499]
[1746830153026,0.25825744,642.99,641.55,0.89774499]
[1746830153526,0.25825744,642.98,641.55,0.89774499]
[1746830153826,0.25825744,642.97,641.55,0.89774499]
[1746830154227,0.25825744,642.96,641.55,0.89774499]
[1746830154629,0.25825744,642.95,641.55,0.89774499]
[1746830154927,0.25825744,642.94,641.55,0.89774499]
[1746830155327,0.25825744,642.93,641.55,0.89774499]
[1746830156327,0.25825744,642.92,641.55,0.89774499]
[1746830156628,0.25825744,643.1,641.55,0.89774499]
[1746830157028,1.09225744,643.09,641.55,0.89774499]
[1746830157329,0.25825744,643.08,641.55,0.89774499]
[1746830157830,0.25825744,643.07,641.55,0.89774499]
[1746830158333,0.25825744,643.06,641.55,0.89774499]
[1746830158631,0.25825744,643.05,641.55,0.89774499]
[1746830159233,0.25825744,643.04,641.55,0.89774499]
[1746830159632,0.25825744,643.03,641.55,0.89774499]
[1746830159933,0.25825744,643.02,641.55,0.89774499]
[1746830160234,2.03376074,642.71,641.55,0.89774499]
[1746830160628,0.25825744,642.7,641.55,0.89774499]
[1746830161538,0.25825744,642.69,641.55,0.89774499]
[1746830161840,0.25825744,642.68,641.55,0.89774499]
[1746830162436,0.25825744,642.67,641.55,0.89774499]
[1746830162837,0.25825744,642.66,641.55,0.89774499]
[1746830163239,0.25825744,642.65,641.55,0.89774499]
[1746830163632,0.25825744,642.64,641.55,0.89774499]
[1746830163939,0.25825744,642.63,641.55,0.89774499]
[1746830164341,2.03376074,642.74,641.55,0.89774499]
[1746830164840,0.25825851,642.73,641.55,0.89774499]
[1746830165240,0.25825851,642.72,641.55,0.89774499]
[1746830165741,0.25825851,642.71,641.55,0.89774499]
[1746830166138,0.25825851,642.7,641.55,0.89774499]
[1746830166539,0.25825851,642.69,641.55,0.89774499]
[1746830166839,0.25825851,642.68,641.55,0.89774499]
[1746830167143,0.25825851,642.67,641.55,0.89774499]
[1746830167638,0.25825851,642.66,641.55,0.89774499]
[1746830168140,0.25825851,642.65,641.55,0.89774499]
[1746830168639,0.25825851,643.08,641.55,0.89774499]
[1746830168944,0.25825851,643.07,641.55,0.89774499]
[1746830169646,2.02790683,642.77,641.55,0.89774499]
[1746830170145,0.25825851,642.76,641.55,0.89774499]
[1746830171746,0.25825851,643.47,641.55,0.89774499]
[1746830172042,2.02790683,643.48,641.55,0.89774499]
[1746830172447,0.25819968,643.47,641.55,0.89774499]
[1746830172748,0.25819968,643.46,641.55,0.89774499]
[1746830173144,0.97419968,643.45,641.55,0.89774499]
[1746830173451,0.25819968,643.44,641.55,0.89774499]
[1746830173848,0.25819968,643.43,641.55,0.89774499]
[1746830174048,0.25819968,643.42,641.55,0.89774499]
[1746830174650,0.25819968,643.41,641.55,0.89774499]
[1746830175149,0.25819968,643.4,641.55,0.89774499]
[1746830175450,0.25819968,643.39,641.55,0.89774499]
[1746830175744,0.25819968,643.38,641.55,0.89774499]
[1746830176145,0.25819968,643.37,641.55,0.89774499]
[1746830176548,0.25819968,643.36,641.55,0.89774499]
[1746830176748,0.25819968,643.35,641.55,0.89774499]